Cogmind - Beta 14 @@@ ROGUE MODE // 2024.11.06 @ 12:36:38 Player: Tereza Result: Destroyed by Y-45 Defender with Heavy Assault Rifle Performance ------------- Evolutions (2) 1000 Regions Visited (6) 1200 Robots Destroyed (82) 410 Value Destroyed (3220) 3220 Prototype IDs (26) 520 Alien Tech Used (0) 0 Bonus (1541) 1541 TOTAL SCORE: 7891 Bonus ------- High Alert Combat Kills 209 Follower Combat Kills 355 Entered Garrisons 200 Used RIF Installer 500 Aligned with FarCom 300 Friendly Fire -23 Cogmind --------- Core Integrity 0/550 Matter 294/300 Energy 150/150 System Corruption 2% Temperature Cool (9) Movement Treading (240) Ox1 Location -8/Garrison Parts ------- > --- POWER (1) -------- Micro Nuclear Core > --- PROPULSION (3) --- Light Treads Light Treads Light Treads > --- UTILITY (5) ------ High-capacity Storage Unit Advanced Targeting Computer Improved Medium Armor Plating Improved Medium Armor Plating Hacking Suite > --- WEAPON (2) ------- Advanced Assault Cannon Advanced Assault Cannon > --- INVENTORY (20) --- Deuterium Engine Micro Nuclear Core Light Treads Advanced Cooling System Advanced Cooling System Improved Terrain Scanner Improved Transmission Jammer Improved Medium Armor Plating Insulated Plating Relay Coupler [Sentry] (25) Variable Charge Gun Heavy Phase Cannon Flak Gun Advanced Assault Cannon AWS/Autocannon Missile Launcher Missile Launcher Mining Laser Peak State ------------ > --- POWER ------------ Micro Nuclear Core > --- PROPULSION ------- Light Treads Light Treads Light Treads > --- UTILITY ---------- High-capacity Storage Unit Advanced Targeting Computer Improved Medium Armor Plating Improved Medium Armor Plating Hacking Suite > --- WEAPON ----------- Advanced Assault Cannon Advanced Assault Cannon > --- INVENTORY -------- Deuterium Engine Micro Nuclear Core Light Treads Light Treads Advanced Cooling System Advanced Cooling System Improved Terrain Scanner Improved Medium Armor Plating Insulated Plating Relay Coupler [Sentry] Variable Charge Gun Heavy Phase Cannon Flak Gun Advanced Assault Cannon AWS/Autocannon Missile Launcher Missile Launcher Mining Laser [Rating: 39] Favorites ----------- Power Light Ion Engine Engine Light Ion Engine Power Core Micro Nuclear Core Propulsion Light Treads Treads Light Treads Leg Aluminum Leg Wheel Compact Wheel Utility Hacking Suite Device Improved Heat Sink Storage High-capacity Storage Unit Processor Targeting Computer Hackware Hacking Suite Protection Hardened Light Armor Plating Weapon Advanced Assault Cannon Energy Gun Gatling Laser Energy Cannon Heavy Particle Cannon Ballistic Gun Assault Rifle Ballistic Cannon Advanced Assault Cannon Launcher Rocket Launcher Build | -11 -10 -10 -10 -9 -8 -8 ------- Run | Yrd Mat Min Exi Min Mat Gar Slots Evolved 4 | . . . . . 4 . Power . | . . . . . . . Propulsion 1 | . . . . . 1 . Utility 3 | . . . . . 3 . Weapon . | . . . . . . . Parts Attached 77 | 6 4 3 . . 46 18 Power 7 | 1 . . . . 6 . Engine 6 | 1 . . . . 5 . Core 1 | . . . . . 1 . Reactor . | . . . . . . . Propulsion 31 | 2 . 2 . . 15 12 Treads 18 | 2 . 1 . . 8 7 Leg 7 | . . . . . 2 5 Wheel 6 | . . 1 . . 5 . Hover . | . . . . . . . Flight . | . . . . . . . Utility 20 | 1 3 1 . . 11 4 Device 4 | . 1 . . . 3 . Storage 4 | 1 1 1 . . 1 . Processor 2 | . 1 . . . 1 . Hackware 1 | . . . . . 1 . Protection 9 | . . . . . 5 4 Artifact . | . . . . . . . Weapon 19 | 2 1 . . . 14 2 Energy Gun 5 | 1 . . . . 4 . Energy Cannon 1 | . . . . . 1 . Ballistic Gun 8 | 1 . . . . 6 1 Ballistic Cannon 4 | . 1 . . . 2 1 Launcher 1 | . . . . . 1 . Special Weapon . | . . . . . . . Impact Weapon . | . . . . . . . Slashing Weapon . | . . . . . . . Piercing Weapon . | . . . . . . . Special Melee Weapon . | . . . . . . . Unidentified Prototypes . | . . . . . . . Parts Lost 34 | . . . . . 25 9 Power 3 | . . . . . 3 . Propulsion 15 | . . . . . 9 6 Utility 7 | . . . . . 5 2 Weapon 9 | . . . . . 8 1 Highest Loss Streak 8 | . . . . . 8 4 To Critical Strikes 1 | . . . . . 1 . Average Slot Usage (%) 96 | . 98 100 100 100 96 94 Engine 7 | . 14 14 14 14 7 . Core 3 | . . . . . . 9 Treads 16 | . 28 15 14 14 13 16 Leg 2 | . . . . . 3 5 Wheel 5 | . . 12 14 14 8 . Device 5 | . 1 . . . 10 5 Storage 10 | . 14 14 14 14 9 9 Processor 10 | . 10 14 14 14 9 9 Hackware 6 | . . . . . 8 9 Protection 6 | . . . . . 6 12 Energy Gun 2 | . 5 . . . 4 . Ballistic Gun 7 | . 14 14 14 14 8 . Ballistic Cannon 10 | . 8 14 14 14 2 17 Peak Build Rating 39 | 6 9 10 13 13 36 39 Average Rating 24 | 4 7 9 11 13 29 34 On Entrance 12 | . 6 9 10 13 13 33 Naked Turns . | . . . . . . . Heaviest Build 95 | 12 28 88 88 88 95 72 Greatest Support 64 | 40 40 40 10 10 64 60 Greatest Overweight (x) 9 | 3 . 8 8 8 9 6 Average Overweight (x) 2 | . . 7 8 8 2 1 Largest Inventory Capacity 25 | 8 15 25 25 25 25 20 Average Capacity 19 | 7 10 23 25 25 21 20 Most Carried 25 | 6 15 25 25 25 25 20 Average Carried 18 | 4 9 21 24 25 20 19 Final Capacity 25 | 8 15 25 25 25 20 20 Final Carried 25 | 6 15 25 25 25 18 20 Class Distribution -------------------- 52% | Mutant 35% | Scavenger-Mutant 11% | Commander-Mutant Dominant Class ---------------- Mutant | -10/Materials Mutant | -10/Mines Mutant | -10/Exiles Mutant | -9/Mines Mutant | -8/Materials Scavenger-Mutant | -8/Garrison Resources | -11 -10 -10 -10 -9 -8 -8 ----------- Run | Yrd Mat Min Exi Min Mat Gar Matter Collected 3136 | 229 154 208 . 14 1289 1242 Remotely . | . . . . . . . Salvage Created 2825 | . 289 283 . . 1851 402 Parts 157 | . 23 13 . . 86 35 Haulers Intercepted 2 | . . . . . 2 . Recyclers Shooed 3 | . . . . . 3 . Parts Field Recycled . | . . . . . . . Retrieved Matter . | . . . . . . . Parts Self-Destructed . | . . . . . . . Prevented . | . . . . . . . Kills | -11 -10 -10 -10 -9 -8 -8 ------- Run | Yrd Mat Min Exi Min Mat Gar Combat Hostiles Destroyed 68 | . 6 6 . . 39 17 Guns 39 | . 3 3 . . 33 . Cannons 29 | . 3 3 . . 6 17 Classes Destroyed 11 | . 4 3 . . 2 2 Builder 2 | . 1 . . . 1 . Hauler 2 | . . . . . 2 . Recycler 4 | . . 2 . . 2 . Operator 2 | . 1 . . . 1 . Watcher 6 | . 2 . . . 4 . Swarmer 17 | . . 3 . . 8 6 Grunt 36 | . 6 2 . . 23 5 Brawler 1 | . . . . . . 1 Sentry 11 | . . 1 . . 7 3 Hunter 2 | . . . . . . 2 Heavy 1 | . . . . . 1 . Best Kill Streak 5 | . 2 3 . . 5 4 Combat Bots Only 5 | . 2 3 . . 5 4 Max Kills in Single Turn 2 | . 2 1 . . 1 2 Gunslinging . | . . . . . . . Exploded . | . . . . . . . Melee . | . . . . . . . Uniques/NPCs Destroyed . | . . . . . . . Combat | -11 -10 -10 -10 -9 -8 -8 -------- Run | Yrd Mat Min Exi Min Mat Gar Hostile Shots Fired 434 | . 24 30 . . 265 115 Missed 96 | . 7 10 . . 59 20 Damage Taken 5471 | . 211 257 . . 3527 1476 Core 647 | . 41 48 . . 361 197 Absorbed by Shields . | . . . . . . . Core Remaining (%) 82 | 100 . . . 64 . . Volleys Fired 268 | . 24 21 . . 158 65 Largest 2 | . 2 2 . . 2 2 Hottest 155 | . 60 55 . . 155 96 Shots Fired 507 | . 48 42 . . 288 129 Gun 287 | . 34 21 . . 225 7 Cannon 218 | . 14 21 . . 61 122 Launcher 2 | . . . . . 2 . Special . | . . . . . . . Kinetic 421 | . 38 42 . . 212 129 Thermal 74 | . . . . . 74 . Explosive 2 | . . . . . 2 . Electromagnetic 10 | . 10 . . . . . Robot Hit Streak 14 | . 8 7 . . 14 6 Robot Miss Streak 6 | . 3 1 . . 6 3 Penetration Max . | . . . . . . . Secondary Targets 2 | . . . . . 2 . Max Gunslinging Chain 1 | . . . . . 1 . Shots Hit Robots 323 | . 32 29 . . 202 60 Core Hits 156 | . 17 12 . . 101 26 Critical Kills . | . . . . . . . Critical Parts Destroyed 3 | . . . . . 3 . Critical Strikes 9 | . . . . . 6 3 Destroy 4 | . . . . . 4 . Blast 5 | . . . . . 2 3 Melee Attacks . | . . . . . . . Impact . | . . . . . . . Slashing . | . . . . . . . Piercing . | . . . . . . . Sneak Attacks . | . . . . . . . Combat Hostiles . | . . . . . . . Follow-up Attacks . | . . . . . . . Damage Inflicted 6637 | . 465 467 . . 3997 1708 Guns 3640 | . 313 182 . . 3070 75 Cannons 2828 | . 152 285 . . 758 1633 Explosions 164 | . . . . . 164 . Melee . | . . . . . . . Ramming 5 | . . . . . 5 . Kinetic 4990 | . 350 467 . . 2465 1708 Thermal 1363 | . . . . . 1363 . Explosive 164 | . . . . . 164 . Electromagnetic 115 | . 115 . . . . . Impact . | . . . . . . . Slashing . | . . . . . . . Piercing . | . . . . . . . Highest Corruption 2 | . . . . . 2 2 Average Corruption 1 | . . . . . 1 2 Corruption Purged . | . . . . . . . Corruption Blocked . | . . . . . . . Effects 37 | . . . . . 10 27 Message Errors 8 | . . . . . 1 7 Matter Fused 9 | . . . . . 3 6 Heat Flow Errors 3 | . . . . . 2 1 Energy Discharges 8 | . . . . . 2 6 Parts Rejected 1 | . . . . . . 1 Parts Fused 1 | . . . . . 1 . Data Loss (minor) 2 | . . . . . . 2 Data Loss (major) 1 | . . . . . . 1 Misfires 1 | . . . . . . 1 Alerts 1 | . . . . . . 1 Weapon Failures 2 | . . . . . 1 1 Overload Shots . | . . . . . . . Overflow Damage 65 | . . . . . 48 17 Projectiles 53 | . . . . . 36 17 Explosions 12 | . . . . . 12 . Melee . | . . . . . . . Knockbacks 27 | . 3 3 . . 6 15 Impact 1 | . . . . . 1 . Kinetic 22 | . 3 3 . . 4 12 Secondary 4 | . . . . . 1 3 Self-Inflicted Damage . | . . . . . . . Shots . | . . . . . . . Rammed 1 | . . . . . 1 . Targets Rammed 1 | . . . . . 1 . Kicked . | . . . . . . . Crushed . | . . . . . . . Highest Temperature 371 | . 12 33 . . 371 330 Average Temperature 144 | . 6 14 . . 198 105 Received Heat Transfer 2139 | . 120 120 . . 1467 432 Effects 14 | . . . . . 14 . Shutdowns 1 | . . . . . 1 . Energy Bleed 3 | . . . . . 3 . Interference 7 | . . . . . 7 . Matter Decay 2 | . . . . . 2 . Short Circuit 1 | . . . . . 1 . Siege Activations . | . . . . . . . Robots Corrupted . | . . . . . . . Combat Hostiles . | . . . . . . . Parts Fried 2 | . . . . . 2 . Impact Corruptions 2 | . . . . . 1 1 Robots Melted . | . . . . . . . Combat Hostiles . | . . . . . . . Parts Melted 3 | . . . . . 3 . Heat Transferred 2907 | . . . . . 2907 . Parts Sabotaged . | . . . . . . . Parts Stolen . | . . . . . . . Parts Stripped . | . . . . . . . Power Chain Reactions . | . . . . . . . Alert | -11 -10 -10 -10 -9 -8 -8 ------- Run | Yrd Mat Min Exi Min Mat Gar Peak Influence 1473 | . 113 150 . . 401 1473 Initial 260 | . . . . . . 260 Average 417 | . 52 67 . . 156 966 Maximum Alert Level 4 | . . . . . 2 4 Low Security (%) 55 | 100 100 100 . 100 76 . Level 1 10 | . . . . . 23 5 Level 2 8 | . . . . . . 24 Level 3 10 | . . . . . . 28 Level 4 14 | . . . . . . 41 Level 5 . | . . . . . . . High Security . | . . . . . . . Max Security . | . . . . . . . Squads Dispatched 7 | . 1 . . . 6 . Investigation 1 | . . . . . 1 . Extermination . | . . . . . . . Reinforcement 6 | . 1 . . . 5 . Assault . | . . . . . . . Garrison . | . . . . . . . Intercept . | . . . . . . . Searches Triggered . | . . . . . . . Construction Impeded 2 | . . . . . 2 . Haulers Reinforced . | . . . . . . . Active Scanning Responses . | . . . . . . . Cargo Convoy Interrupts . | . . . . . . . Stealth | -11 -10 -10 -10 -9 -8 -8 --------- Run | Yrd Mat Min Exi Min Mat Gar Distress Signals 8 | . . . . . 8 . Communications Jammed . | . . . . . . . Distress Signals . | . . . . . . . Times Spotted 105 | . 9 7 . . 58 31 Peak Tracking Total 7 | . 2 3 . . 7 5 Tactical Retreats 12 | . . . . . 4 8 Traps | -11 -10 -10 -10 -9 -8 -8 ------- Run | Yrd Mat Min Exi Min Mat Gar Traps Triggered 12 | . . . . . 4 8 Indirectly . | . . . . . . . Trap Hack Attempts . | . . . . . . . Triggered . | . . . . . . . Disarmed . | . . . . . . . Reprogrammed . | . . . . . . . Reused . | . . . . . . . Traps Extracted . | . . . . . . . Installed . | . . . . . . . Triggered . | . . . . . . . Machines | -11 -10 -10 -10 -9 -8 -8 ---------- Run | Yrd Mat Min Exi Min Mat Gar Machines Disabled 7 | . . 1 . . 1 5 Max in Single Turn 2 | . . 1 . . 1 2 Garrison Relay 2 | . . . . . . 2 Phase Generator 1 | . . . . . . 1 Machines Repaired . | . . . . . . . Machines Dismantled . | . . . . . . . Machines Sabotaged . | . . . . . . . Overloaded Fab Kills . | . . . . . . . Hacking | -11 -10 -10 -10 -9 -8 -8 --------- Run | Yrd Mat Min Exi Min Mat Gar Machines Accessed 14 | . 2 . 2 . 7 3 Terminals 11 | . 2 . . . 6 3 Fabricators . | . . . . . . . Repair Stations . | . . . . . . . Recycling Units . | . . . . . . . Scanalyzers . | . . . . . . . Garrison Access 1 | . . . . . 1 . Total Hacks 27 | . 3 . 5 . 15 4 Successful 15 | . 2 . 5 . 6 2 Failed 12 | . 1 . . . 9 2 Catastrophic 2 | . 1 . . . 1 . Database Lockouts . | . . . . . . . Manual 13 | . . . 1 . 12 . Terminals 20 | . 3 . . . 13 4 Fabricators . | . . . . . . . Repair Stations . | . . . . . . . Recycling Units . | . . . . . . . Scanalyzers . | . . . . . . . Garrison Access 2 | . . . . . 2 . Terminal Hacks 14 | . 2 . 5 . 5 2 Record 4 | . . . 4 . . . Prototype ID Bank 1 | . 1 . . . . . Emergency Access Points 1 | . . . . . . 1 Garrison Index 1 | . . . . . 1 . Alert Level 2 | . . . . . 2 . Unreport Threat 1 | . . . . . 1 . Garrison Status 1 | . . . . . 1 . Zone Layout 1 | . 1 . . . . . Security Stations 1 | . . . . . . 1 Derelict Proto ID Bank 1 | . . . 1 . . . Fabricator Hacks . | . . . . . . . Repair Station Hacks . | . . . . . . . Recycling Unit Hacks . | . . . . . . . Scanalyzer . | . . . . . . . Garrison Access Hacks 1 | . . . . . 1 . Unlock Access 1 | . . . . . 1 . Unauthorized Hacks . | . . . . . . . Terminals . | . . . . . . . Fabricators . | . . . . . . . Repair Stations . | . . . . . . . Recycling Units . | . . . . . . . Scanalyzers . | . . . . . . . Garrison Access . | . . . . . . . Data Cores Recovered . | . . . . . . . Used . | . . . . . . . Hacking Detections 10 | . 1 . . . 7 2 Full Trace Events 2 | . . . . . 1 1 Feedback Events 1 | . . . . . 1 . Corruption 1 | . . . . . 1 . Feedback Blocked . | . . . . . . . Robot Schematics Acquired . | . . . . . . . Robots Built . | . . . . . . . Authchips . | . . . . . . . Time . | . . . . . . . Total Robot Build Rating . | . . . . . . . Part Schematics Acquired . | . . . . . . . Parts Built . | . . . . . . . Authchips . | . . . . . . . Time . | . . . . . . . Total Part Build Rating . | . . . . . . . Parts Repaired . | . . . . . . . Time . | . . . . . . . Parts Recycled . | . . . . . . . Recycled Matter . | . . . . . . . Retrieved Matter . | . . . . . . . Retrieved Components . | . . . . . . . Parts Scanalyzed . | . . . . . . . Part Schematics Acquired . | . . . . . . . Parts Damaged . | . . . . . . . Bothacking | -11 -10 -10 -10 -9 -8 -8 ------------ Run | Yrd Mat Min Exi Min Mat Gar Used RIF Installer 1 | . . . . . . 1 Robots Hacked . | . . . . . . . Non-combat . | . . . . . . . Combat . | . . . . . . . Robot Hacks Applied . | . . . . . . . Relay Couplers Released 10 | . . . . . . 10 Machine Destruction 10 | . . . . . . 10 Fabnet Peak Effective % . | . . . . . . . Robots Rewired 9 | . . . . . . 9 Allies Hacked . | . . . . . . . Hacks Repelled . | . . . . . . . Allies | -11 -10 -10 -10 -9 -8 -8 -------- Run | Yrd Mat Min Exi Min Mat Gar Total Allies 9 | . . . . . . 9 Largest Group 9 | . . . . . . 9 Highest-Rated Group 183 | . . . . . . 183 Highest-Rated Ally 31 | . . . . . . 31 Total Orders . | . . . . . . . Ally Attacks 105 | . . . . . . 105 Total Damage 1499 | . . . . . . 1499 Kills 12 | . . . . . . 12 Allies Corrupted . | . . . . . . . Allies Melted . | . . . . . . . Intel | -11 -10 -10 -10 -9 -8 -8 ------- Run | Yrd Mat Min Exi Min Mat Gar Robot Analysis Total . | . . . . . . . Derelict Logs Recovered 1 | . . 1 . . . . Drone Launches . | . . . . . . . Drone Recoveries . | . . . . . . . Exploration | -11 -10 -10 -10 -9 -8 -8 ------------- Run | Yrd Mat Min Exi Min Mat Gar Turns Passed 6217 | 66 822 581 423 60 2206 2059 Spaces Moved 2459 | 33 434 253 211 31 824 673 Core 15 | 15 . . . . . . Treads 1245 | 18 434 29 . . 222 542 Legs 106 | . . . . . . 106 Wheels 1093 | . . 224 211 31 602 25 Hover . | . . . . . . . Flight . | . . . . . . . Fastest Speed 50 | 50 160 160 200 200 115 145 Average Speed 190 | 156 160 195 200 200 153 252 Slowest Speed 540 | 200 160 200 200 200 400 540 Overloaded Moves . | . . . . . . . Propulsion Burnouts . | . . . . . . . Robots Hopped . | . . . . . . . Cave-ins Triggered . | . . . . . . . Exploration Rate (%) 44 | 4 52 44 60 12 79 58 Regions Visited 6 Branch Regions 3 Pre-discovered Areas 1 | . . . 1 . . . Known Exits Taken 1 | . . . . . 1 . Unknown Exits Taken 5 | 1 1 1 1 1 . . Scrap Searched 2 | . . 1 . 1 . . Spaces Dug . | . . . . . . . Terrain Destroyed 108 | . . . . . 39 69 Melee . | . . . . . . . Projectile 21 | . . . . . 21 . AOE 87 | . . . . . 18 69 Terrain Rammed . | . . . . . . . Walls Destroyed . | . . . . . . . Machines Disabled . | . . . . . . . Actions | -11 -10 -10 -10 -9 -8 -8 --------- Run | Yrd Mat Min Exi Min Mat Gar Total 3519 | 44 516 298 214 30 1505 912 Wait 461 | . 33 10 . . 411 7 Move 2453 | 32 433 252 210 30 823 673 Hop . | . . . . . . . Pick Up 87 | 6 14 10 1 . 38 18 Fast Attach 29 | 6 3 . . . 10 10 Attach 29 | . . . . . 25 4 Detach 2 | . . . . . 1 1 Swap 19 | . 1 3 . . 11 4 Drop 56 | . 8 2 3 . 27 16 Fire 268 | . 24 21 . . 158 65 Melee . | . . . . . . . Ram . | . . . . . . . Kick . | . . . . . . . Crush 1 | . . . . . 1 . Escape Stasis 6 | . . . . . . 6 Rewire 108 | . . . . . . 108 Trap . | . . . . . . . Miscellaneous . | . . . . . . . Route ------- -11/Scrapyard -10/Materials (discovered 2 exits: [*Mat] / [*Min]) -10/Mines -10/Exiles -9/Mines -8/Materials (discovered 3 exits: [*Fac x2] / Gar) -8/Garrison (discovered 1 exit: [*Mat]) History --------- Turn | Location | Event 28 | -11/Scrapyard | Discovered new exit (range 16) 67 | -11/Scrapyard | Entered Materials 300 | -10/Materials | Build established: Mutant 388 | -10/Materials | Discovered new exit (range 15) 590 | -10/Materials | Discovered new exit (range 7) 889 | -10/Materials | Entered Mines 896 | -10/Mines | Received a Rocket Launcher from a helpful Derelict 1170 | -10/Mines | Joined a pair of Derelicts in attacking an 0b10 outpost 1356 | -10/Mines | Learned Materials stockpile data 1460 | -10/Mines | Deemed a non-threat by the Exiles lab entrance 1462 | -10/Mines | Discovered new exit (range 5) 1470 | -10/Mines | Entered Exiles 1520 | -10/Exiles | Met 8R-AWN 1554 | -10/Exiles | Met EX-HEX 1612 | -10/Exiles | Met EX-BIN 1632 | -10/Exiles | Aligned with FarCom system 1634 | -10/Exiles | Given EX-Vault access code 1682 | -10/Exiles | Opened EX-Vault 1694 | -10/Exiles | Found AWS/Autocannon 1733 | -10/Exiles | Warned to stay clear of 0b10 Research branches 1793 | -10/Exiles | Met EX-DEC 1809 | -10/Exiles | Learned location of Zion (-6) 1863 | -10/Exiles | Discovered new exit (range 14) 1893 | -10/Exiles | Left Exiles lab with AWS/Autocannon 1893 | -10/Exiles | Entered Mines 1895 | -9/Mines | Discovered new exit (range 12) 1953 | -9/Mines | Entered Materials 1953 | -8/Materials | Evolved 4 slots: Propulsion x1, Utility x3 2360 | -8/Materials | Found Powered Armor 2844 | -8/Materials | Discovered new exit (range 15) 3083 | -8/Materials | Found Prototype Device 3132 | -8/Materials | Lost 8 parts (1p1n3u3w) 3377 | -8/Materials | Lost 6 parts (1p2n1u2w) 3655 | -8/Materials | Build established: Scavenger-Mutant 3712 | -8/Materials | Discovered new exit (range 16) 3877 | -8/Materials | Core integrity fell below 50% 4157 | -8/Materials | Identified exit to Garrison 4159 | -8/Materials | Entered Garrison 4246 | -8/Garrison | Core integrity fell below 20% 4296 | -8/Garrison | Lost 4 parts (3n1u) 4332 | -8/Garrison | Garrison Relay disabled 4343 | -8/Garrison | Triggered checkpoint 4466 | -8/Garrison | Installed Relay Interface Framework 4635 | -8/Garrison | Phase Generator disabled 4779 | -8/Garrison | Triggered checkpoint 4902 | -8/Garrison | Learned Materials security intel 5058 | -8/Garrison | Garrison Relay disabled 5099 | -8/Garrison | Triggered checkpoint 5201 | -8/Garrison | Triggered checkpoint 5371 | -8/Garrison | Triggered checkpoint 5426 | -8/Garrison | Build established: Commander-Mutant 5636 | -8/Garrison | Discovered new exit (range 10) 5783 | -8/Garrison | Triggered checkpoint 5879 | -8/Garrison | Spotted B-75 Beast 5919 | -8/Garrison | Lost 3 allies 6100 | -8/Garrison | Spotted B-75 Beast 6161 | -8/Garrison | Triggered checkpoint 6218 | -8/Garrison | Destroyed by Y-45 Defender with Heavy Assault Rifle Last Messages --------------- 05996_ Acquired Lgt. Treads. 05999_ Dropped Lgt. Ion Engine. 06000_ Acquired Lgt. Treads. 06011_ System corrupted: Matter fused (-5). 06013_ Dropped Field Laser. 06013_ Acquired Variable Charge Gun. 06016_ Dropped Flak Gun. 06016_ Acquired Hvy. Phase Cannon. 06019_ Acquired 25 matter. 06029_ Dropped Imp. Heat Sink. 06029_ Acquired Adv. Cooling System. 06040_ System corrupted: Component data lost. 06042_ Dropped Prototype Energy Gun. 06042_ Acquired Adv. Cooling System. 06065_ Dropped Lgt. Treads. 06065_ Acquired Imp. Transmission Jammer. 06069_ System corrupted: FCS attempts to trigger Adv. Assault Cannon. 06069_ System corrupted: Adv. Assault Cannon misfires. Map ----- +----------------------------------------------------+ | #### ### #??????????????????????????????? | | #??????????????????????????????? | | #??????????????????????????????? | | ## ###########??????????????????????????????? | | ## ###??????????????????????????????????????? | | == #??????????????????????????????????????? | | *[#??????????????????????????????????????? | | =[ ####???????????????????????????????????? | | = #???????????????????????????????????? | | ## %#### #???????????????????????????????????? | | ## =#??# #???????????????????????????????????? | | ^= #### #################???????????????????? | | %^ #???????????????????? | | % ! ###### ############# #???????????????????? | | [*## #????# #??????????## ###?????????????????? | | %## #????# #??????????#! !#?????????????????? | | ##### #????# #??????????#! !#?????????????????? | | #???# #????# #??????????#! !#?????????????????? | | #???# #????# #??????????#! !#?????????????????? | | #???# ###### #??????????## ##?????????????????? | | ????# #???????????# #??????????????????? | | ????# ###### #???????????# #??????????????????? | | ????# #????# #??????????##! ##??????#####??????? | | ????# #????# #??????????# % #??????# #??????? | | ????# ###### ############ ######## < #??????? | | ????# Y @*% #??????? | | ????# !%% ^ =* #??????? | | ????# % ^ %[ #??????? | | ????########## ######################### ##??????? | | ?????????????# #???????????????????????###???????? | | ?????????????# #?????????????????????????????????? | | ?????????????# #?????????????????????????????????? | | ?????????????# ######????????????????????????????? | | ?????????????# "#????????????????????????????? | | ?????????????# ##"T"#????????????????????????????? | | ??????#####??# ######????????????????????????????? | | ??????# #??# #?????????????????????????????????? | | ??????#% ####=#????????????????????????#####????? | | ??????#[ [ ##%##########################!!!#????? | | ??????# [ + !#????? | | ??????#= # ## ##### ##### ##### ##!!!#????? | | ??????######## #???# #???# #???# ######????? | | ?????????????#*#???## ##???## ##???## ##?????????? | | ???????#####?#%#????# #?????# #?????# #??????????? | | ???????#"""#?#=#????# #?????# #?????# #??????????? | | ???????# ! ### ###### #?????# #?????# #??????????? | | ???????# !!! [* ==#?????# #?????# #??????????? | | ???????#" !########## ##???##*##???## ##?????????? | | ???????#" #???????# #???#=!%#####! !#?????????? | | ???????#"""#???????# #???#*![[ ! ! !#?????????? | +----------------------------------------------------+ Best States ------------- Heat Dissipation 67 Energy Generation 15 Energy Capacity 275 Matter Stores 300 Matter Capacity 300 Sight Range 16 Terrain Scan Density 10 Armor Coverage 450 Resistance: EM 15 Evasion (%) 40 Targeting Accuracy 8 Recoil Reduction 3 Offensive Hacking 10 Item Schematics ----------------- None Robot Schematics ------------------ None Fabricated ------------ Nothing Alien Tech Used ----------------- None Achievements -------------- None Challenges ------------ None Game ------ Seed PhysicsThrowingTorch Manual? 0 Play Time 00:33:58 Cumulative 101.2 hours Start 2024.11.06 @ 11:48:44 End 2024.11.06 @ 12:36:38 Sessions 1 Manual Loads 0 Difficulty Rogue Special Mode None Game No. 126 Rogue 126 Adventurer 0 Explorer 0 Win Type - Total 1 Types 1/0/0/0/0/0/0/0/0 Lore% 61 Gallery% 52 Achievement% 45 Wizard Run 0 Options --------- Layout 1 ASCII 0 Keyboard 1 Movement Numpad Keybinds 0 Fullscreen 1 Font 24/Smallcaps Map View 50x35 Zoom Use 0% Tactical HUD 1 Map Filters NONE Filters NONE Steam 1 RUN: dfe59965-84bb-4cdb-91c0-fa79111d371e